bitfinex-derivatives/quotes_SOLF0:USTF0_20260208
["timestamp","ask_amount","ask_price","bid_price","bid_amount"]
[1770594213664,20.01723736,86.686,86.611,19.86410597]
[1770594214379,10.3896,86.684,86.613,19.86410597]
[1770594214669,20.01723736,86.747,86.613,19.86410597]
[1770594214863,10.3882,86.696,86.626,19.86410597]
[1770594215065,20.01723736,86.708,86.591,19.86410597]
[1770594215666,10.391,86.673,86.598,10.3999]
[1770594215863,10.391,86.673,86.599,19.86410597]
[1770594216163,20.01723736,86.688,86.599,19.86410597]
[1770594216762,10.3934,86.652,86.599,19.86410597]
[1770594217771,20.01723736,86.668,86.599,19.86410597]
[1770594218675,10.3934,86.653,86.599,19.86410597]
[1770594218976,34.94163619,86.7,86.599,19.86410597]
[1770594219177,20.01723736,86.731,86.599,19.86410597]
[1770594219780,34.94163619,86.74,86.622,19.86410597]
[1770594219781,10.3876,86.7,86.622,19.86410597]
[1770594220680,10.3876,86.7,86.624,19.86410597]
[1770594221783,10.3876,86.7,86.63,19.86410597]
[1770594222676,10.3887,86.692,86.63,19.86410597]
[1770594223880,10.39,86.681,86.63,19.86410597]
[1770594224482,10.39,86.681,86.62,9.12839817]
[1770594224679,20.01723736,86.68,86.62,9.12839817]
[1770594224885,20.01723736,86.68,86.611,19.86410597]
[1770594225084,20.01723736,86.68,86.588,20.49838092]
[1770594225478,19.67607691,86.66,86.571,10.4031]
[1770594225688,19.67607691,86.66,86.572,20.49838092]
[1770594226182,19.67607691,86.684,86.581,20.49838092]
[1770594226687,10.3915,86.668,86.604,20.49838092]
[1770594226987,19.67607691,86.684,86.576,20.49838092]
[1770594227176,19.67607691,86.679,86.576,20.49838092]
[1770594227579,19.67607691,86.655,86.576,20.49838092]
[1770594228589,19.67607691,86.655,86.581,20.49838092]
[1770594229288,30.06917691,86.655,86.583,20.49838092]
[1770594229891,30.06917691,86.655,86.586,20.49838092]
[1770594230091,19.67607691,86.644,86.571,20.49838092]
[1770594230284,9.12839817,86.66,86.571,20.49838092]
[1770594230490,19.67607691,86.664,86.585,20.49838092]
[1770594230882,10.3923,86.661,86.593,20.49838092]
[1770594231287,19.67607691,86.699,86.593,20.49838092]
[1770594231494,19.67607691,86.672,86.596,20.49838092]
[1770594231992,19.67607691,86.659,86.571,20.49838092]
[1770594232189,10.3949,86.64,86.573,10.4028]
[1770594233993,19.67607691,86.631,86.571,20.49838092]
[1770594234396,20.7809,86.677,86.571,20.49838092]
[1770594234397,10.3951,86.638,86.571,20.49838092]
[1770594234587,19.67607691,86.651,86.571,20.49838092]
[1770594234988,10.3961,86.63,86.571,20.49838092]
[1770594235191,19.67607691,86.651,86.571,20.49838092]
[1770594235586,10.3946,86.642,86.572,10.4029]
[1770594235799,10.3946,86.642,86.573,20.49838092]
[1770594236687,19.67607691,86.629,86.567,10.4035]
[1770594236884,19.67607691,86.629,86.561,20.49838092]
[1770594237396,10.3963,86.628,86.562,20.49838092]
[1770594238600,10.3963,86.628,86.565,20.49838092]
[1770594238794,9.12839817,86.65,86.565,20.49838092]
[1770594238795,10.3972,86.621,86.565,20.49838092]
[1770594240094,10.3955,86.635,86.565,20.49838092]
[1770594240294,19.67607691,86.669,86.583,20.49838092]
[1770594240998,9.12839817,86.69,86.603,20.49838092]
[1770594240999,19.67607691,86.689,86.603,20.49838092]
[1770594241198,10.3901,86.68,86.603,20.49838092]
[1770594241390,19.67607691,86.689,86.633,10.3956]
[1770594241593,19.67607691,86.728,86.634,20.49838092]
[1770594242101,10.3884,86.694,86.634,20.49838092]
[1770594242400,19.67607691,86.693,86.634,20.49838092]
[1770594242805,10.389,86.689,86.634,20.49838092]
[1770594242990,19.67607691,86.729,86.634,20.49838092]
[1770594243797,10.3877,86.7,86.634,20.49838092]
[1770594244102,19.67607691,86.699,86.613,20.49838092]
[1770594244401,19.67607691,86.679,86.613,20.49838092]
[1770594244589,19.67607691,86.698,86.616,20.49838092]
[1770594245195,19.67607691,86.677,86.616,20.49838092]
[1770594246194,19.67607691,86.677,86.6,9.13256281]
[1770594246195,10.3893,86.687,86.618,20.49838092]
[1770594246703,19.67607691,86.696,86.621,20.49838092]
[1770594247507,19.67607691,86.696,86.622,20.49838092]
[1770594248403,10.3876,86.701,86.622,20.49838092]
[1770594249804,19.67607691,86.69,86.622,20.49838092]
[1770594250496,19.67607691,86.711,86.622,20.49838092]
[1770594251707,10.3866,86.709,86.622,20.49838092]
[1770594252804,10.3877,86.7,86.622,20.49838092]
[1770594253201,19.67607691,86.708,86.625,20.49838092]
[1770594253399,19.67607691,86.729,86.641,20.49838092]
[1770594254008,10.3849,86.724,86.641,20.49838092]
[1770594254605,10.3859,86.715,86.641,20.49838092]
[1770594254906,19.67607691,86.714,86.641,20.49838092]
[1770594255505,21.69207075,86.735,86.643,20.60310991]
[1770594256509,21.69207075,86.735,86.661,20.06270414]
[1770594256510,10.3836,86.734,86.661,20.06270414]
[1770594257104,10.3836,86.734,86.663,20.06270414]
[1770594257309,20.54157602,86.755,86.663,20.06270414]
[1770594257509,20.54157602,86.755,86.681,20.06270414]
[1770594257707,20.54157602,86.755,86.683,20.06270414]
[1770594258412,20.54157602,86.755,86.686,20.06270414]
[1770594258608,20.54157602,86.755,86.663,20.06270414]
[1770594258913,20.54157602,86.755,86.671,20.06270414]
[1770594259414,20.54157602,86.755,86.65,9.13256281]
[1770594259415,20.54157602,86.755,86.691,20.06270414]
[1770594260012,20.54157602,86.753,86.691,20.06270414]
[1770594260815,308.42952938,86.812,86.691,20.06270414]
[1770594260816,20.54157602,86.793,86.691,20.06270414]
[1770594261117,20.54157602,86.793,86.711,20.06270414]
[1770594261319,20.54157602,86.787,86.711,20.06270414]
[1770594262624,10.3782,86.78,86.711,20.06270414]
[1770594262821,20.54157602,86.779,86.711,20.06270414]
[1770594263721,10.3784,86.778,86.711,20.06270414]
[1770594264224,20.54157602,86.779,86.711,20.06270414]
[1770594264620,20.54157602,86.779,86.713,20.06270414]
[1770594265218,20.54157602,86.779,86.716,20.06270414]
[1770594265718,20.54157602,86.775,86.691,20.06270414]
[1770594266826,20.54157602,86.771,86.698,20.06270414]
[1770594267525,9.13256281,86.79,86.7,20.06270414]
[1770594267526,30.92097602,86.77,86.7,20.06270414]
[1770594267920,20.54157602,86.807,86.71,9.13256281]
[1770594268126,20.54157602,86.807,86.711,20.06270414]
[1770594268824,20.54157602,86.778,86.711,20.06270414]
[1770594269430,20.54157602,86.776,86.711,20.06270414]
[1770594269818,20.54157602,86.776,86.712,20.06270414]
[1770594270820,20.54157602,86.776,86.714,20.06270414]
[1770594271026,20.54157602,86.8,86.714,20.06270414]
[1770594272218,20.54157602,86.786,86.718,10.3854]
[1770594273230,20.54157602,86.786,86.71,9.13256281]
[1770594273231,20.54157602,86.786,86.721,20.06270414]
[1770594274030,20.54157602,86.806,86.731,20.06270414]
[1770594275225,20.54157602,86.794,86.731,20.06270414]
[1770594276027,20.54157602,86.794,86.733,20.06270414]
[1770594277129,10.3753,86.804,86.736,20.06270414]
[1770594277332,20.54157602,86.803,86.736,20.06270414]
[1770594277732,20.54157602,86.798,86.736,20.06270414]
[1770594277933,20.54157602,86.798,86.716,20.06270414]
[1770594278335,20.54157602,86.783,86.718,20.06270414]
[1770594279336,20.54157602,86.783,86.719,30.44800414]
[1770594279531,20.54157602,86.783,86.72,20.06270414]
[1770594281228,20.54157602,86.783,86.722,20.06270414]
[1770594281730,17.34157602,86.783,86.722,20.06270414]
[1770594282236,17.34157602,86.783,86.701,20.06270414]
[1770594283335,17.34157602,86.783,86.72,20.06270414]
[1770594283532,20.54157602,86.829,86.731,20.06270414]
[1770594284334,20.54157602,86.805,86.734,20.06270414]
[1770594284930,20.54157602,86.805,86.74,9.13256281]
[1770594285131,10.3738,86.816,86.741,20.41688411]
[1770594285733,10.3738,86.816,86.752,20.41688411]
[1770594286336,9.13256281,86.83,86.752,20.41688411]
[1770594286337,20.64109732,86.811,86.752,20.41688411]
[1770594286539,20.64109732,86.829,86.752,20.41688411]
[1770594287340,20.64109732,86.829,86.759,10.3806]
[1770594287546,20.64109732,86.829,86.759,30.79748411]
[1770594287736,20.64109732,86.829,86.76,20.41688411]
[1770594288044,20.64109732,86.829,86.743,20.41688411]
[1770594288344,9.13256281,86.83,86.74,9.13256281]
[1770594288345,20.64109732,86.828,86.757,30.79758411]
[1770594289040,20.64109732,86.824,86.757,30.79758411]
[1770594289641,20.64109732,86.824,86.745,10.3821]
[1770594290241,10.3736,86.818,86.753,10.3813]
[1770594290440,31.01469732,86.818,86.754,20.41688411]
[1770594290639,9.13256281,86.83,86.72,9.13256281]
[1770594290640,20.64109732,86.817,86.735,20.41688411]
[1770594291047,20.64109732,86.804,86.743,10.3825]
[1770594292344,20.64109732,86.804,86.747,20.41688411]
[1770594292940,20.64109732,86.801,86.747,20.41688411]
[1770594294441,20.64109732,86.798,86.729,20.41688411]
[1770594295242,20.64109732,86.812,86.729,20.41688411]
[1770594296048,20.64109732,86.798,86.729,20.41688411]
[1770594299352,20.83064868,86.859,86.729,20.41688411]
[1770594299353,20.64109732,86.796,86.729,20.41688411]
[1770594300461,20.64109732,86.793,86.709,20.41688411]
[1770594300959,20.64109732,86.793,86.712,20.41688411]
[1770594301156,20.64109732,86.793,86.721,20.41688411]
[1770594301564,20.64109732,86.821,86.742,20.41688411]
[1770594301862,20.64109732,86.819,86.742,20.41688411]
[1770594302056,20.64109732,86.809,86.742,20.41688411]
[1770594302655,20.64109732,86.829,86.754,20.41688411]
[1770594303062,9.13256281,86.85,86.761,20.41688411]
[1770594303063,20.64109732,86.848,86.761,20.41688411]
[1770594303259,8.19367793,86.847,86.761,20.41688411]
[1770594303459,8.19367793,86.846,86.761,20.41688411]
[1770594303656,8.19367793,86.846,86.716,161.5548]
[1770594303657,20.64109732,86.848,86.781,20.41688411]
[1770594303858,20.64109732,86.848,86.761,20.41688411]
[1770594304059,20.64109732,86.845,86.764,20.41688411]
[1770594304257,20.64109732,86.829,86.739,20.41688411]
[1770594304468,20.64109732,86.809,86.739,20.41688411]
[1770594304662,20.64109732,86.807,86.739,20.41688411]
[1770594304866,20.64109732,86.805,86.739,20.41688411]
[1770594305670,31.01619732,86.805,86.739,20.41688411]
[1770594305878,20.64109732,86.804,86.739,20.41688411]
[1770594306171,20.64109732,86.804,86.718,20.41688411]
[1770594306371,14.14166906,86.845,86.751,20.41688411]
[1770594306372,20.64109732,86.835,86.751,20.41688411]
[1770594306567,20.64109732,86.829,86.751,20.41688411]
[1770594306769,20.64109732,86.827,86.751,20.41688411]
[1770594306968,20.64109732,86.825,86.751,20.41688411]
[1770594307370,20.64109732,86.823,86.751,20.41688411]
[1770594307571,20.64109732,86.821,86.751,20.41688411]
[1770594307771,20.64109732,86.802,86.725,20.41688411]
[1770594307969,20.64109732,86.799,86.706,20.41688411]
[1770594308166,20.64109732,86.797,86.706,20.41688411]
[1770594308370,20.64109732,86.769,86.688,20.41688411]
[1770594308577,20.64109732,86.767,86.688,20.41688411]
[1770594308777,20.64109732,86.765,86.688,20.41688411]
[1770594308970,20.64109732,86.752,86.669,20.41688411]
[1770594309170,20.64109732,86.75,86.669,20.41688411]
[1770594309370,20.64109732,86.75,86.682,20.41688411]
[1770594309576,20.64109732,86.788,86.701,20.41688411]
[1770594309778,20.64109732,86.819,86.721,20.41688411]
[1770594310075,10.3751,86.805,86.723,20.41688411]
[1770594310379,20.64109732,86.817,86.723,20.41688411]
[1770594310579,20.64109732,86.815,86.723,20.41688411]
[1770594310782,20.64109732,86.813,86.723,20.41688411]
[1770594310978,20.64109732,86.805,86.724,20.41688411]
[1770594311274,20.64109732,86.803,86.724,20.41688411]
[1770594311482,20.64109732,86.799,86.724,20.41688411]
[1770594311675,20.64109732,86.784,86.724,20.41688411]
[1770594312276,20.64109732,86.782,86.701,20.41688411]
[1770594312476,20.64109732,86.78,86.701,20.41688411]
[1770594313381,20.64109732,86.778,86.701,20.41688411]
[1770594313783,20.64109732,86.774,86.701,20.41688411]
[1770594313983,9.1035481,86.8,86.681,20.41688411]
[1770594313984,20.64109732,86.772,86.681,20.41688411]
[1770594314279,20.64109732,86.759,86.681,20.41688411]
[1770594314682,161.4072,86.797,86.681,20.41688411]
[1770594314683,20.64109732,86.748,86.681,20.41688411]
[1770594314876,20.64109732,86.778,86.681,20.41688411]
[1770594315080,20.54036053,86.776,86.701,19.19939991]
[1770594315579,20.54036053,86.797,86.701,19.19939991]
[1770594315882,20.54036053,86.797,86.721,19.19939991]
[1770594316580,20.80405805,86.795,86.721,19.19939991]
[1770594316779,20.80405805,86.779,86.701,19.62670333]
[1770594316981,20.80405805,86.777,86.701,19.62670333]
[1770594317189,20.80405805,86.775,86.701,19.62670333]
[1770594317483,20.80405805,86.763,86.68,19.62670333]
[1770594318282,20.80405805,86.763,86.638,28.48664732]
[1770594318283,20.80405805,86.783,86.701,19.62670333]
[1770594319279,20.80405805,86.781,86.701,19.62670333]
[1770594319481,20.80405805,86.779,86.701,19.62670333]
[1770594320090,10.3792,86.771,86.701,19.62670333]
[1770594320484,20.80405805,86.779,86.701,19.62670333]
[1770594320790,20.80405805,86.779,86.711,19.62670333]
[1770594321180,20.80405805,86.777,86.711,19.62670333]
[1770594321374,20.80405805,86.777,86.692,19.62670333]
[1770594321575,20.80405805,86.796,86.71,9.1035481]
[1770594321888,20.80405805,86.794,86.711,19.62670333]
[1770594322285,20.80405805,86.79,86.711,19.62670333]
[1770594322586,20.80405805,86.779,86.691,19.62670333]
[1770594322787,20.80405805,86.777,86.691,19.62670333]
[1770594322988,20.80405805,86.762,86.691,19.62670333]
[1770594323482,10.3811,86.755,86.691,19.62670333]
[1770594323681,20.80405805,86.754,86.67,9.1035481]
[1770594323890,20.80405805,86.754,86.668,19.62670333]
[1770594324182,9.1035481,86.76,86.668,19.62670333]
[1770594324183,20.80405805,86.752,86.668,19.62670333]
[1770594324782,20.80405805,86.746,86.668,19.62670333]
[1770594325082,20.80405805,86.746,86.65,9.1035481]
[1770594325083,20.80405805,86.746,86.671,19.62670333]
[1770594325986,9.1035481,86.76,86.671,19.62670333]
[1770594325987,20.80405805,86.734,86.671,19.62670333]
[1770594326888,20.80405805,86.758,86.673,19.62670333]
[1770594327485,20.80405805,86.758,86.677,10.3903]
[1770594327789,20.80405805,86.758,86.681,19.62670333]
[1770594327990,20.80405805,86.758,86.691,19.62670333]
[1770594328386,20.80405805,86.777,86.691,19.62670333]
[1770594329290,20.80405805,86.777,86.714,30.01260333]
[1770594330181,20.80405805,86.777,86.699,10.3878]
[1770594330386,20.80405805,86.777,86.7,19.62670333]
[1770594330895,20.80405805,86.794,86.703,19.62670333]
[1770594331687,20.80405805,86.783,86.72,30.01190333]
[1770594332092,20.80405805,86.783,86.721,19.62670333]
[1770594332390,20.80405805,86.799,86.73,19.62670333]
[1770594333283,20.80405805,86.818,86.745,19.62670333]
[1770594333794,20.80405805,86.818,86.746,10.382]
[1770594334292,20.80405805,86.818,86.747,19.62670333]
[1770594334586,20.80405805,86.838,86.749,19.62670333]
[1770594335494,20.80405805,86.824,86.749,19.62670333]
[1770594335891,20.80405805,86.843,86.749,19.62670333]
[1770594336290,20.80405805,86.843,86.766,19.62670333]
[1770594337601,20.80405805,86.864,86.781,30.00460333]
[1770594337797,20.80405805,86.864,86.781,19.62670333]
[1770594337993,20.80405805,86.881,86.801,19.62670333]
[1770594338297,20.80405805,86.881,86.805,19.62670333]
[1770594339200,20.80405805,86.881,86.8,9.1035481]
[1770594339201,20.80405805,86.906,86.807,19.62670333]
[1770594339391,20.80405805,86.906,86.821,19.62670333]
[1770594339795,20.80405805,86.904,86.821,19.62670333]
[1770594340597,20.80405805,86.904,86.823,19.62670333]
[1770594341398,20.80405805,86.9,86.823,19.62670333]
[1770594343402,20.80405805,86.9,86.736,49.25334732]
[1770594343403,20.80405805,86.897,86.802,19.62670333]
[1770594343808,20.80405805,86.897,86.807,19.62670333]
[1770594344104,20.80405805,86.894,86.807,19.62670333]
[1770594344305,20.80405805,86.894,86.76,9.1035481]
[1770594344306,20.80405805,86.894,86.811,19.62670333]
[1770594344705,20.80405805,86.894,86.778,161.4405]
[1770594344706,20.80405805,86.915,86.83,9.1035481]
[1770594344998,20.80405805,86.915,86.831,19.62670333]
[1770594345406,20.80405805,86.915,86.839,18.74233304]
[1770594345796,19.57500622,86.933,86.851,18.74233304]
[1770594345998,19.57500622,86.953,86.852,18.74233304]
[1770594346199,19.57500622,86.953,86.871,18.74233304]
[1770594346403,19.57500622,86.953,86.86,9.1035481]
[1770594346602,19.57500622,86.939,86.852,18.74233304]
[1770594347002,19.57500622,86.939,86.855,18.74233304]
[1770594348013,19.57500622,86.939,86.858,18.74233304]
[1770594348211,19.57500622,86.96,86.871,18.74233304]
[1770594348508,19.57500622,86.96,86.873,10.3668]
[1770594348704,19.57500622,86.96,86.874,18.74233304]
[1770594349311,19.57500622,86.96,86.884,18.74233304]
[1770594349903,19.57500622,86.96,86.87,9.1035481]
[1770594349904,19.57500622,86.96,86.886,18.74233304]
[1770594350912,19.57500622,86.96,86.872,18.74233304]
[1770594351207,19.57500622,86.949,86.851,18.74233304]
[1770594351601,19.57500622,86.929,86.851,18.74233304]
[1770594351806,19.57500622,86.929,86.821,18.74233304]
[1770594352011,19.57500622,86.919,86.821,18.74233304]
[1770594352305,19.57500622,86.918,86.833,18.74233304]
[1770594352510,19.57500622,86.949,86.841,18.74233304]
[1770594352810,19.57500622,86.949,86.776,20.757]
[1770594352811,19.57500622,86.949,86.869,18.74233304]
[1770594353311,19.57500622,86.949,86.876,18.74233304]
[1770594353903,19.57500622,86.949,86.82,9.1035481]
[1770594353904,19.57500622,86.967,86.89,18.74233304]
[1770594354912,19.57500622,86.965,86.89,18.74233304]
[1770594355618,19.57500622,86.959,86.861,18.74233304]
[1770594356111,19.57500622,86.959,86.878,18.74233304]
[1770594356718,19.57500622,86.959,86.882,18.74233304]
[1770594357418,19.57500622,86.958,86.882,18.74233304]
[1770594357913,19.57500622,86.938,86.864,18.74233304]
[1770594359306,19.57500622,86.935,86.864,18.74233304]
[1770594360120,19.57500622,86.935,86.84,9.1035481]
[1770594360121,19.57500622,86.959,86.867,18.74233304]
[1770594360725,19.57500622,86.938,86.867,18.74233304]
[1770594361114,19.57500622,86.938,86.809,18.74233304]
[1770594361314,19.57500622,86.891,86.802,18.74233304]
[1770594361917,19.57500622,86.88,86.802,18.74233304]
[1770594362222,19.57500622,86.879,86.802,18.74233304]
[1770594362621,19.57500622,86.897,86.802,18.74233304]
[1770594363218,19.57500622,86.894,86.802,18.74233304]
[1770594364020,19.57500622,86.875,86.802,18.74233304]
[1770594365120,19.57500622,86.899,86.802,18.74233304]
[1770594365319,19.57500622,86.896,86.819,18.74233304]
[1770594365517,19.57500622,86.896,86.801,18.74233304]
[1770594365725,19.57500622,86.879,86.801,18.74233304]
[1770594366024,19.57500622,86.852,86.781,18.74233304]
[1770594366526,19.57500622,86.852,86.751,18.74233304]
[1770594366725,19.57500622,86.852,86.771,18.74233304]
[1770594367219,19.57500622,86.852,86.775,18.74233304]
[1770594367618,9.1035481,86.88,86.775,18.74233304]
[1770594367822,19.57500622,86.879,86.775,18.74233304]
[1770594368627,19.57500622,86.879,86.791,18.74233304]
[1770594370424,19.57500622,86.879,86.811,18.74233304]
[1770594371023,19.57500622,86.879,86.793,18.74233304]
[1770594371424,19.57500622,86.931,86.793,18.74233304]
[1770594371627,161.1439,86.939,86.793,18.74233304]
[1770594371628,19.57500622,86.909,86.793,18.74233304]
[1770594371825,19.57500622,86.889,86.793,18.74233304]
[1770594372328,19.57500622,86.877,86.793,18.74233304]
[1770594372930,19.57500622,86.874,86.793,18.74233304]
[1770594373321,19.57500622,86.874,86.8,9.09358648]
[1770594373523,19.57500622,86.874,86.801,18.74233304]
[1770594375030,19.57500622,86.874,86.804,17.28563418]
[1770594376029,19.57500622,86.874,86.81,17.38925165]
[1770594377219,16.99727869,86.896,86.812,17.38925165]
[1770594377423,16.99727869,86.896,86.776,34.66]
[1770594377424,16.99727869,86.896,86.821,17.38925165]
[1770594378121,16.99727869,86.896,86.826,27.76185165]
[1770594378321,16.99727869,86.896,86.827,17.38925165]
[1770594378521,16.99727869,86.896,86.81,17.38925165]
[1770594378930,16.99727869,86.87,86.791,17.38925165]
[1770594380031,16.99727869,86.87,86.804,17.38925165]
[1770594380229,16.99727869,86.898,86.804,17.38925165]
[1770594380430,16.99727869,86.898,86.811,17.38925165]
[1770594381234,16.99727869,86.896,86.826,17.38925165]
[1770594382224,16.99727869,86.896,86.836,10.3714]
[1770594382424,16.99727869,86.896,86.783,21.07129024]
[1770594382425,16.99727869,86.917,86.837,17.38925165]
[1770594382734,16.99727869,86.935,86.851,17.38925165]
[1770594383637,16.99727869,86.935,86.875,10.3667]
[1770594383838,16.99727869,86.935,86.85,26.48283813]
[1770594384133,16.99727869,86.935,86.85,17.38925165]
[1770594384836,16.99727869,86.933,86.85,17.38925165]
[1770594385140,16.99727869,86.933,86.861,17.38925165]
[1770594386426,16.99727869,86.933,86.875,17.38925165]
[1770594387036,16.99727869,86.933,86.878,10.3663]
[1770594388134,16.99727869,86.933,86.86,9.09358648]
[1770594388339,16.99727869,86.933,86.854,17.38925165]
[1770594388835,16.99727869,86.933,86.85,9.09358648]
[1770594389037,16.99727869,86.933,86.85,17.38925165]
[1770594389433,16.99727869,86.933,86.861,17.38925165]
[1770594389942,16.99727869,86.933,86.86,9.09358648]
[1770594389943,16.99727869,86.952,86.878,17.38925165]
[1770594390840,16.99727869,86.952,86.88,17.38925165]
[1770594391034,16.99727869,86.952,86.861,17.38925165]
[1770594391643,16.99727869,86.949,86.88,10.366]
[1770594392236,16.99727869,86.946,86.88,10.366]
[1770594392639,10.3603,86.929,86.861,17.38925165]
[1770594392843,16.99727869,86.928,86.842,17.38925165]
[1770594393345,16.99727869,86.913,86.842,17.38925165]
[1770594394038,16.99727869,86.913,86.854,10.3692]
[1770594394239,16.99727869,86.913,86.855,17.38925165]
[1770594395242,16.99727869,86.91,86.818,17.38925165]
[1770594395444,16.99727869,86.909,86.818,17.38925165]
[1770594396244,16.99727869,86.906,86.831,17.38925165]
[1770594397534,16.99727869,86.947,86.871,17.38925165]
[1770594398045,10.356,86.965,86.89,9.09358648]
[1770594398342,16.99727869,86.979,86.89,9.09358648]
[1770594398343,16.99727869,86.979,86.891,17.38925165]
[1770594398640,8.18139953,86.989,86.893,17.38925165]
[1770594398944,16.99727869,86.998,86.911,17.38925165]
[1770594399635,16.99727869,86.998,86.931,17.38925165]
[1770594400336,9.09358648,87.03,86.931,17.38925165]
[1770594400736,10.3499,87.017,86.931,17.38925165]
[1770594401037,10.3499,87.017,86.93,9.09358648]
[1770594401038,9.09358648,87.04,86.932,17.38925165]
[1770594401241,14.1226912,87.071,86.88,9.09358648]
[1770594401242,9.09358648,87.02,86.911,17.38925165]
[1770594401746,9.09358648,87.0,86.911,17.38925165]
[1770594402341,16.99727869,86.999,86.911,17.38925165]
[1770594402847,16.99727869,87.019,86.931,17.38925165]
[1770594403042,16.99727869,87.039,86.951,17.38925165]
[1770594405439,16.55759532,87.019,86.932,16.48600166]
[1770594405938,16.55759532,87.016,86.932,16.48600166]
[1770594406444,8.18139953,87.075,86.932,16.48600166]
[1770594406445,16.55759532,87.014,86.932,16.48600166]
[1770594406844,16.55759532,87.014,86.866,161.2757]
[1770594406845,16.55759532,87.014,86.913,16.48600166]
[1770594407136,9.09358648,87.02,86.913,16.48600166]
[1770594407137,16.55759532,86.996,86.913,16.48600166]
[1770594407646,16.55759532,86.981,86.913,16.48600166]
[1770594408442,16.55759532,87.002,86.913,16.48600166]
[1770594408746,16.55759532,87.002,86.931,16.48600166]
[1770594409048,16.55759532,87.022,86.933,16.48600166]
[1770594410143,16.55759532,87.022,86.935,16.48600166]
[1770594411845,16.55759532,87.02,86.935,16.48600166]
[1770594412047,16.55759532,87.019,86.935,16.48600166]
[1770594412446,16.55759532,86.999,86.914,16.48600166]
[1770594413340,10.3536,86.985,86.914,16.48600166]
[1770594414355,10.3541,86.981,86.914,16.48600166]
[1770594415039,16.55759532,86.984,86.914,16.48600166]
[1770594415243,16.55759532,86.994,86.914,16.48600166]
[1770594417250,10.3528,86.992,86.914,16.48600166]
[1770594417856,16.55759532,86.991,86.914,16.48600166]
[1770594418149,16.55759532,86.991,86.917,16.48600166]
[1770594418446,16.55759532,87.01,86.921,16.48600166]
[1770594418947,10.351,87.007,86.925,16.48600166]
[1770594419252,16.55759532,87.01,86.925,16.48600166]
[1770594419452,16.55759532,87.01,86.941,16.48600166]
[1770594420049,16.55759532,87.03,86.943,16.48600166]
[1770594420650,16.55759532,87.048,86.961,16.48600166]
[1770594421057,9.09358648,87.08,86.961,16.48600166]
[1770594421248,9.09358648,87.08,86.981,16.48600166]
[1770594421446,9.09358648,87.06,86.961,16.48600166]
[1770594421750,9.09358648,87.06,86.886,405.96]
[1770594421751,9.09358648,87.04,86.941,16.48600166]
[1770594422054,9.09358648,87.02,86.921,16.48600166]
[1770594422254,160.9401,87.049,86.921,16.48600166]
[1770594422255,9.09358648,87.0,86.921,16.48600166]
[1770594422647,9.09358648,87.02,86.924,16.48600166]
[1770594422847,9.09358648,87.04,86.924,16.48600166]
[1770594423151,3.77582678,87.021,86.955,10.3571]
[1770594424056,3.7975542,87.019,86.926,16.48600166]
[1770594424658,3.7975542,86.999,86.926,16.48600166]
[1770594424853,3.7975542,86.999,86.907,16.48600166]
[1770594425449,3.52422175,86.987,86.89,9.09358648]
[1770594425655,3.52422175,86.979,86.887,16.48600166]
[1770594425857,10.3547,86.976,86.905,10.3631]
[1770594426056,3.54546071,86.975,86.906,16.48600166]
[1770594426356,3.54546071,86.998,86.911,16.48600166]
[1770594427258,3.50677152,86.989,86.911,16.48600166]
[1770594427655,3.50694293,86.978,86.911,16.48600166]
[1770594427861,3.50694293,86.978,86.903,10.3633]
[1770594428459,3.52729895,86.963,86.873,16.48600166]
[1770594428656,9.09358648,87.01,86.901,17.54019056]
[1770594428859,9.09358648,87.01,86.921,17.54019056]
[1770594429164,8.13984997,87.059,86.961,17.54019056]
[1770594429361,9.09358648,87.07,86.961,17.54019056]
[1770594429661,9.09358648,87.07,86.981,17.54019056]
[1770594430153,10.3444,87.063,86.981,17.54019056]
[1770594430655,0.15982696,87.068,86.981,17.54019056]
[1770594430967,0.15982696,87.068,86.991,17.73967738]
[1770594431760,10.3441,87.066,86.991,17.73967738]
[1770594432257,9.05067253,87.09,86.991,17.73967738]
[1770594433053,8.13984997,87.089,86.991,17.73967738]
[1770594433253,160.8259,87.11,86.991,17.73967738]
[1770594433254,9.05067253,87.07,86.991,17.73967738]
[1770594433456,10.3454,87.055,86.991,17.73967738]
[1770594433661,10.3454,87.055,86.971,17.68203431]
[1770594435363,0.23764199,87.051,86.971,17.68203431]
[1770594435664,0.23764199,87.084,86.991,17.57486063]
[1770594436658,0.4397979,87.079,86.991,17.57486063]
[1770594437268,10.3433,87.072,86.991,17.57486063]
[1770594437770,10.3418,87.084,87.011,17.49969335]
[1770594438066,10.3418,87.084,86.944,34.66]
[1770594438067,0.48990005,87.083,86.991,17.49969335]
[1770594438265,9.05067253,87.09,86.991,17.49969335]
[1770594438266,10.83320005,87.072,86.991,17.49969335]
[1770594438657,0.56904623,87.071,86.991,17.49969335]
[1770594438969,10.3448,87.06,86.991,17.49969335]
[1770594439666,0.61833611,87.059,86.991,17.49969335]
[1770594439965,10.3468,87.043,86.991,17.49969335]
[1770594440874,10.3451,87.057,86.991,17.49969335]
[1770594441366,8.198996,87.083,86.991,17.49969335]
[1770594441562,8.198996,87.089,86.991,17.49969335]